[Event "Early-Titled-Tuesday-Blitz-October-17-2023"]
[Site "Chess.com"]
[Date "2023.10.17"]
[Round "5"]
[White "Alenzer"]
[Black "CuattroPrincesses"]
[Result "0-1"]
[WhiteElo "2100"]
[BlackElo "2272"]
[TimeControl "180+1"]
[EndTime "8:59:25 PDT"]
[Termination "CuattroPrincesses won by resignation"]

1. e4 {[%clk 0:02:58.7]} 1... c5 {[%clk 0:02:59.5]} 2. Nf3 {[%clk 0:02:58.7]}
2... d6 {[%clk 0:02:59.4]} 3. c3 {[%clk 0:02:58.8]} 3... Nf6 {[%clk 0:02:58.6]}
4. h3 {[%clk 0:02:59.1]} 4... Nbd7 {[%clk 0:02:58.2]} 5. Bd3 {[%clk 0:02:59.2]}
5... b6 {[%clk 0:02:58.1]} 6. Bc2 {[%clk 0:02:59.5]} 6... Bb7 {[%clk 0:02:57.5]}
7. Qe2 {[%clk 0:02:57.6]} 7... Qc7 {[%clk 0:02:55.3]} 8. O-O {[%clk 0:02:57.6]}
8... Rc8 {[%clk 0:02:54.9]} 9. Na3 {[%clk 0:02:57.3]} 9... a6 {[%clk 0:02:54.9]}
10. d3 {[%clk 0:02:55.8]} 10... e6 {[%clk 0:02:51.8]} 11. Be3 {[%clk 0:02:53.4]}
11... Be7 {[%clk 0:02:49.3]} 12. Nc4 {[%clk 0:02:45.3]} 12... b5 {[%clk
0:02:46.8]} 13. Ncd2 {[%clk 0:02:44.7]} 13... O-O {[%clk 0:02:45.7]} 14. a4
{[%clk 0:02:44.6]} 14... Nb6 {[%clk 0:02:34.4]} 15. a5 {[%clk 0:02:44.5]} 15...
Nbd7 {[%clk 0:02:33.9]} 16. Bf4 {[%clk 0:02:41]} 16... Ne5 {[%clk 0:02:29.7]}
17. Nxe5 {[%clk 0:02:30]} 17... dxe5 {[%clk 0:02:30.6]} 18. Bg3 {[%clk
0:02:29.1]} 18... Rcd8 {[%clk 0:02:22.4]} 19. f4 {[%clk 0:02:16.3]} 19... Bd6
{[%clk 0:02:05.8]} 20. fxe5 {[%clk 0:02:14.8]} 20... Bxe5 {[%clk 0:02:05.5]} 21.
Bxe5 {[%clk 0:02:15.1]} 21... Qxe5 {[%clk 0:02:02.9]} 22. Nf3 {[%clk 0:02:15.6]}
22... Qc7 {[%clk 0:01:51.4]} 23. e5 {[%clk 0:01:49.2]} 23... Nh5 {[%clk
0:01:26.7]} 24. Kh2 {[%clk 0:01:26]} 24... Nf4 {[%clk 0:01:20.3]} 25. Qe3 {[%clk
0:01:20.7]} 25... Ng6 {[%clk 0:01:18.6]} 26. d4 {[%clk 0:01:19.5]} 26... Bxf3
{[%clk 0:01:14.9]} 27. Bxg6 {[%clk 0:01:13.6]} 27... fxg6 {[%clk 0:01:04]} 28.
Rxf3 {[%clk 0:01:04.8]} 28... Rxf3 {[%clk 0:01:01.9]} 29. gxf3 {[%clk
0:00:53.8]} 29... cxd4 {[%clk 0:01:01.7]} 30. cxd4 {[%clk 0:00:53.9]} 30... Qc2+
{[%clk 0:00:59.6]} 31. Kg3 {[%clk 0:00:50.4]} 31... Qxb2 {[%clk 0:00:56.6]} 32.
Rd1 {[%clk 0:00:49.7]} 32... Qa2 {[%clk 0:00:48.4]} 33. Qg5 {[%clk 0:00:45.9]}
33... Qd5 {[%clk 0:00:46]} 34. Qe7 {[%clk 0:00:32.5]} 34... Rf8 {[%clk
0:00:43.5]} 35. Rd3 {[%clk 0:00:32.6]} 35... b4 {[%clk 0:00:34.8]} 36. Qxb4
{[%clk 0:00:28.5]} 36... h5 {[%clk 0:00:34.4]} 37. Qc5 {[%clk 0:00:17.2]} 37...
Qxc5 {[%clk 0:00:18.4]} 38. dxc5 {[%clk 0:00:17.2]} 38... Rc8 {[%clk 0:00:18.9]}
39. Rc3 {[%clk 0:00:17.2]} 39... Kf7 {[%clk 0:00:17.5]} 40. Kf4 {[%clk
0:00:17.8]} 40... Ke7 {[%clk 0:00:17.1]} 41. c6 {[%clk 0:00:17]} 41... Kd8
{[%clk 0:00:16.6]} 42. Ke4 {[%clk 0:00:16.1]} 42... Kc7 {[%clk 0:00:16.7]} 43.
Kd4 {[%clk 0:00:15]} 43... Rf8 {[%clk 0:00:14.6]} 44. Kc5 {[%clk 0:00:11.9]}
44... Rf5 {[%clk 0:00:14]} 45. f4 {[%clk 0:00:08.9]} 45... g5 {[%clk 0:00:10.9]}
46. Rb3 {[%clk 0:00:06.9]} 46... gxf4 {[%clk 0:00:10.1]} 47. Rb7+ {[%clk
0:00:07.1]} 47... Kc8 {[%clk 0:00:10.3]} 48. Rxg7 {[%clk 0:00:07.5]} 48... f3
{[%clk 0:00:10.1]} 49. Kd6 {[%clk 0:00:07.8]} 49... Rf8 {[%clk 0:00:08.5]} 50.
Ra7 {[%clk 0:00:08.1]} 50... Kb8 {[%clk 0:00:08.7]} 51. Rb7+ {[%clk 0:00:08.3]}
51... Ka8 {[%clk 0:00:08.7]} 52. Rb2 {[%clk 0:00:03.4]} 52... f2 {[%clk
0:00:05.5]} 53. Rxf2 {[%clk 0:00:01.5]} 53... Rxf2 {[%clk 0:00:03.4]} 54. Kxe6
{[%clk 0:00:02.4]} 54... Rc2 {[%clk 0:00:02]} 55. Kd7 {[%clk 0:00:02.9]} 55...
Kb8 {[%clk 0:00:02.2]} 56. e6 {[%clk 0:00:03.3]} 56... Rd2+ {[%clk 0:00:02.8]}
57. Ke7 {[%clk 0:00:02.5]} 57... Kc7 {[%clk 0:00:03.2]} 58. Kf7 {[%clk
0:00:02.5]} 58... Kxc6 {[%clk 0:00:02.2]} 59. e7 {[%clk 0:00:02.8]} 59... Rf2+
{[%clk 0:00:02.7]} 60. Kg7 {[%clk 0:00:03.1]} 60... Re2 {[%clk 0:00:02.1]} 61.
Kf7 {[%clk 0:00:03.5]} 61... Kd7 {[%clk 0:00:02.5]} 62. e8=Q+ {[%clk 0:00:03]}
62... Rxe8 {[%clk 0:00:01.6]} 63. Kg6 {[%clk 0:00:03.3]} 63... Re3 {[%clk
0:00:02.2]} 64. Kxh5 {[%clk 0:00:04.1]} 64... Rxh3+ {[%clk 0:00:00.5]} 65. Kg5
{[%clk 0:00:05]} 65... Ra3 {[%clk 0:00:01.4]} 66. Kf5 {[%clk 0:00:05.5]} 66...
Rxa5+ {[%clk 0:00:02.2]} 67. Ke4 {[%clk 0:00:05.9]} 67... Rb5 {[%clk 0:00:03.1]}
68. Kd4 {[%clk 0:00:05.8]} 68... Rb7 {[%clk 0:00:04]} 69. Kc4 {[%clk 0:00:06.1]}
69... a5 {[%clk 0:00:04.9]} 70. Kc3 {[%clk 0:00:06.8]} 70... Kc8 {[%clk
0:00:05.8]} 71. Kc2 {[%clk 0:00:07.4]} 71... a4 {[%clk 0:00:06.7]} 72. Kc1
{[%clk 0:00:08.1]} 72... a3 {[%clk 0:00:07.6]} 73. Kc2 {[%clk 0:00:09]} 73... a2
{[%clk 0:00:08.5]} 0-1

[Event "Early-Titled-Tuesday-Blitz-October-17-2023"]
[Site "Chess.com"]
[Date "2023.10.17"]
[Round "5"]
[White "Aash20"]
[Black "MDBIchess"]
[Result "1-0"]
[WhiteElo "2549"]
[BlackElo "2360"]
[TimeControl "180+1"]
[EndTime "8:59:27 PDT"]
[Termination "Aash20 won by checkmate"]

1. e4 {[%clk 0:03:00.9]} 1... c5 {[%clk 0:02:55.3]} 2. Nf3 {[%clk 0:03:00.4]}
2... g6 {[%clk 0:02:53.5]} 3. Nc3 {[%clk 0:02:58]} 3... Nc6 {[%clk 0:02:53.3]}
4. Bc4 {[%clk 0:02:57.8]} 4... Bg7 {[%clk 0:02:52.8]} 5. d3 {[%clk 0:02:57.8]}
5... e6 {[%clk 0:02:53.4]} 6. O-O {[%clk 0:02:57.4]} 6... Nge7 {[%clk
0:02:54.1]} 7. h3 {[%clk 0:02:57.6]} 7... O-O {[%clk 0:02:54.5]} 8. Bg5 {[%clk
0:02:56.2]} 8... h6 {[%clk 0:02:53.2]} 9. Bf4 {[%clk 0:02:55.3]} 9... d5 {[%clk
0:02:51.6]} 10. Bb3 {[%clk 0:02:54.3]} 10... b6 {[%clk 0:02:44.9]} 11. Qd2
{[%clk 0:02:51.9]} 11... Kh7 {[%clk 0:02:44.7]} 12. Rae1 {[%clk 0:02:50.3]}
12... Bb7 {[%clk 0:02:44.6]} 13. exd5 {[%clk 0:02:50.1]} 13... Nxd5 {[%clk
0:02:41.4]} 14. Nxd5 {[%clk 0:02:45.5]} 14... exd5 {[%clk 0:02:42.3]} 15. Ne5
{[%clk 0:02:44.6]} 15... Nxe5 {[%clk 0:02:29.6]} 16. Bxe5 {[%clk 0:02:45.5]}
16... Re8 {[%clk 0:02:28.6]} 17. Bxg7 {[%clk 0:02:45.1]} 17... Kxg7 {[%clk
0:02:29.5]} 18. Qc3+ {[%clk 0:02:42.6]} 18... Qf6 {[%clk 0:02:29.7]} 19. Qxf6+
{[%clk 0:02:40.1]} 19... Kxf6 {[%clk 0:02:30.6]} 20. f3 {[%clk 0:02:40.5]} 20...
Bc6 {[%clk 0:02:28.1]} 21. Kf2 {[%clk 0:02:39.7]} 21... a5 {[%clk 0:02:27.4]}
22. c3 {[%clk 0:02:39.2]} 22... d4 {[%clk 0:02:21.3]} 23. cxd4 {[%clk
0:02:38.1]} 23... cxd4 {[%clk 0:02:22.2]} 24. Rxe8 {[%clk 0:02:36.9]} 24... Rxe8
{[%clk 0:02:20.1]} 25. Rc1 {[%clk 0:02:37.5]} 25... Bb5 {[%clk 0:02:19.4]} 26.
Bc4 {[%clk 0:02:37.3]} 26... Rc8 {[%clk 0:02:16.2]} 27. b3 {[%clk 0:02:35.3]}
27... a4 {[%clk 0:02:12.2]} 28. bxa4 {[%clk 0:02:32.3]} 28... Bxa4 {[%clk
0:02:12.1]} 29. Rb1 {[%clk 0:02:32.4]} 29... b5 {[%clk 0:02:10.2]} 30. Bb3
{[%clk 0:02:31.4]} 30... Rc3 {[%clk 0:02:04.4]} 31. Bxa4 {[%clk 0:02:27]} 31...
bxa4 {[%clk 0:02:05.3]} 32. Rb4 {[%clk 0:02:27]} 32... Rc2+ {[%clk 0:01:51.4]}
33. Kg3 {[%clk 0:02:26]} 33... Rxa2 {[%clk 0:01:50.1]} 34. Rxd4 {[%clk
0:02:26.4]} 34... a3 {[%clk 0:01:50.8]} 35. Ra4 {[%clk 0:02:26.4]} 35... Ra1
{[%clk 0:01:49.9]} 36. Ra5 {[%clk 0:02:20.8]} 36... a2 {[%clk 0:01:49.8]} 37.
Kf2 {[%clk 0:02:18.4]} 37... h5 {[%clk 0:01:46]} 38. h4 {[%clk 0:02:15.5]} 38...
Ke6 {[%clk 0:01:45.7]} 39. Kg3 {[%clk 0:02:12.4]} 39... f6 {[%clk 0:01:44]} 40.
Kf4 {[%clk 0:02:12.3]} 40... Ke7 {[%clk 0:01:41.8]} 41. d4 {[%clk 0:02:11.4]}
41... Kd7 {[%clk 0:01:40]} 42. Ra6 {[%clk 0:02:11]} 42... Ke7 {[%clk 0:01:32.4]}
43. d5 {[%clk 0:02:09.8]} 43... Kd7 {[%clk 0:01:31.8]} 44. Kg3 {[%clk
0:02:08.3]} 44... g5 {[%clk 0:01:30.8]} 45. hxg5 {[%clk 0:02:06.1]} 45... fxg5
{[%clk 0:01:31.7]} 46. Kh2 {[%clk 0:02:05]} 46... h4 {[%clk 0:01:29.9]} 47. Ra4
{[%clk 0:01:46.8]} 47... Kd6 {[%clk 0:01:26.7]} 48. Ra5 {[%clk 0:01:46.9]} 48...
Ke5 {[%clk 0:01:27]} 49. d6+ {[%clk 0:01:02.7]} 49... Kxd6 {[%clk 0:01:25.8]}
50. Ra6+ {[%clk 0:01:01.3]} 50... Ke5 {[%clk 0:01:24.5]} 51. Ra5+ {[%clk
0:01:01.2]} 51... Kd4 {[%clk 0:01:23.1]} 52. Ra4+ {[%clk 0:01:00.8]} 52... Ke3
{[%clk 0:01:22.7]} 53. Ra3+ {[%clk 0:01:00.4]} 53... Kf2 {[%clk 0:01:17.4]} 54.
Ra5 {[%clk 0:00:57.5]} 54... Ke2 {[%clk 0:00:56]} 55. Ra4 {[%clk 0:00:55.6]}
55... Kd3 {[%clk 0:00:55.9]} 56. Ra8 {[%clk 0:00:55.3]} 56... Kc2 {[%clk
0:00:50.3]} 57. Rc8+ {[%clk 0:00:54.7]} 57... Kb1 {[%clk 0:00:50.9]} 58. Rb8+
{[%clk 0:00:55]} 58... Kc1 {[%clk 0:00:50.3]} 59. Rc8+ {[%clk 0:00:55.3]} 59...
Kd1 {[%clk 0:00:50.8]} 60. Rd8+ {[%clk 0:00:55.3]} 60... Ke1 {[%clk 0:00:51.4]}
61. Re8+ {[%clk 0:00:55.2]} 61... Kf1 {[%clk 0:00:51]} 62. Ra8 {[%clk
0:00:55.1]} 62... Kf2 {[%clk 0:00:50.5]} 63. Ra7 {[%clk 0:00:53.9]} 63... h3
{[%clk 0:00:43.3]} 64. gxh3 {[%clk 0:00:51.8]} 64... Kxf3 {[%clk 0:00:43.3]} 65.
Ra3+ {[%clk 0:00:51.6]} 65... Kf4 {[%clk 0:00:41.7]} 66. Ra4+ {[%clk 0:00:51.7]}
66... Kf5 {[%clk 0:00:41.8]} 67. Ra5+ {[%clk 0:00:52.3]} 67... Kg6 {[%clk
0:00:25.9]} 68. Kg2 {[%clk 0:00:52]} 68... Kf6 {[%clk 0:00:20.7]} 69. Ra6+
{[%clk 0:00:51.8]} 69... Kf5 {[%clk 0:00:21]} 70. Ra5+ {[%clk 0:00:52.2]} 70...
Ke4 {[%clk 0:00:20.3]} 71. Ra4+ {[%clk 0:00:52.2]} 71... Kd3 {[%clk 0:00:20.8]}
72. Ra8 {[%clk 0:00:51.3]} 72... Kc4 {[%clk 0:00:21.1]} 73. Rc8+ {[%clk
0:00:51.2]} 73... Kb3 {[%clk 0:00:21.4]} 74. Rb8+ {[%clk 0:00:51.9]} 74... Kc2
{[%clk 0:00:20.2]} 75. Rc8+ {[%clk 0:00:52.1]} 75... Kd3 {[%clk 0:00:20.7]} 76.
Rd8+ {[%clk 0:00:52.5]} 76... Ke4 {[%clk 0:00:21.2]} 77. Re8+ {[%clk 0:00:52.7]}
77... Kd5 {[%clk 0:00:21.9]} 78. Ra8 {[%clk 0:00:52.8]} 78... Kc6 {[%clk
0:00:21.1]} 79. Ra5 {[%clk 0:00:51.7]} 79... Kb6 {[%clk 0:00:21]} 80. Ra3 {[%clk
0:00:51.9]} 80... Kc6 {[%clk 0:00:20.3]} 81. Ra8 {[%clk 0:00:51.6]} 81... Kd5
{[%clk 0:00:20.6]} 82. Ra5+ {[%clk 0:00:51.3]} 82... Ke6 {[%clk 0:00:20.8]} 83.
Ra6+ {[%clk 0:00:51.3]} 83... Kf7 {[%clk 0:00:20.5]} 84. Ra7+ {[%clk 0:00:51.3]}
84... Kg6 {[%clk 0:00:21.1]} 85. Ra6+ {[%clk 0:00:51.5]} 85... Kh5 {[%clk
0:00:21.4]} 86. Kh2 {[%clk 0:00:51.3]} 86... Kh4 {[%clk 0:00:12.4]} 87. Rh6#
{[%clk 0:00:50.4]} 1-0

[Event "Early-Titled-Tuesday-Blitz-October-17-2023"]
[Site "Chess.com"]
[Date "2023.10.17"]
[Round "5"]
[White "blitzo_vich"]
[Black "Byniolus"]
[Result "0-1"]
[WhiteElo "2603"]
[BlackElo "2795"]
[TimeControl "180+1"]
[EndTime "8:59:33 PDT"]
[Termination "Byniolus won on time"]

1. c4 {[%clk 0:03:00.9]} 1... c6 {[%clk 0:03:00.1]} 2. Nf3 {[%clk 0:02:58.8]}
2... d5 {[%clk 0:03:00.1]} 3. e3 {[%clk 0:02:59.5]} 3... Nf6 {[%clk 0:03:00.4]}
4. Nc3 {[%clk 0:02:58.7]} 4... Bg4 {[%clk 0:03:00.7]} 5. Be2 {[%clk 0:02:57.7]}
5... e6 {[%clk 0:03:01.1]} 6. h3 {[%clk 0:02:56.6]} 6... Bh5 {[%clk 0:03:00.8]}
7. b3 {[%clk 0:02:56.7]} 7... Nbd7 {[%clk 0:02:59.4]} 8. Bb2 {[%clk 0:02:56.8]}
8... Be7 {[%clk 0:02:59.8]} 9. Qc2 {[%clk 0:02:57]} 9... Bg6 {[%clk 0:02:58.9]}
10. d3 {[%clk 0:02:56.7]} 10... h6 {[%clk 0:02:56.9]} 11. O-O {[%clk 0:02:49.6]}
11... O-O {[%clk 0:02:55]} 12. Rad1 {[%clk 0:02:48.7]} 12... a5 {[%clk 0:02:54]}
13. Rfe1 {[%clk 0:02:39.3]} 13... Bd6 {[%clk 0:02:50.4]} 14. e4 {[%clk
0:02:37.1]} 14... dxe4 {[%clk 0:02:48.2]} 15. dxe4 {[%clk 0:02:35.9]} 15... Qe7
{[%clk 0:02:43]} 16. Qd2 {[%clk 0:02:28.7]} 16... Bb4 {[%clk 0:01:44]} 17. e5
{[%clk 0:02:03.7]} 17... Ne4 {[%clk 0:01:38.2]} 18. Qxd7 {[%clk 0:01:38.4]}
18... Qxd7 {[%clk 0:01:31.3]} 19. Rxd7 {[%clk 0:01:39.3]} 19... Nxc3 {[%clk
0:01:31.2]} 20. Bxc3 {[%clk 0:01:22.5]} 20... Bxc3 {[%clk 0:01:31.2]} 21. Rc1
{[%clk 0:01:21.6]} 21... Bb2 {[%clk 0:01:29.4]} 22. Rcd1 {[%clk 0:01:21.7]}
22... Rab8 {[%clk 0:01:24.5]} 23. Bd3 {[%clk 0:01:20.4]} 23... Bxd3 {[%clk
0:01:08.7]} 24. R1xd3 {[%clk 0:01:19.4]} 24... b5 {[%clk 0:01:09.6]} 25. c5
{[%clk 0:00:47.1]} 25... Ba3 {[%clk 0:00:54.5]} 26. Rc3 {[%clk 0:00:44.8]} 26...
Rfc8 {[%clk 0:00:30.5]} 27. Rc2 {[%clk 0:00:40.1]} 27... a4 {[%clk 0:00:17.7]}
28. Nd4 {[%clk 0:00:39.1]} 28... Ra8 {[%clk 0:00:06]} 29. Rd6 {[%clk 0:00:36.3]}
29... axb3 {[%clk 0:00:06.5]} 30. axb3 {[%clk 0:00:35.7]} 30... Ra6 {[%clk
0:00:05.6]} 31. Nxb5 {[%clk 0:00:34.5]} 31... Ra5 {[%clk 0:00:05]} 32. Nd4
{[%clk 0:00:22.5]} 32... Rxc5 {[%clk 0:00:02.7]} 33. Rxc5 {[%clk 0:00:17.5]}
33... Bxc5 {[%clk 0:00:03.6]} 34. Rxc6 {[%clk 0:00:16.3]} 34... Rd8 {[%clk
0:00:04.1]} 35. Nxe6 {[%clk 0:00:09]} 35... Rd1+ {[%clk 0:00:04.4]} 36. Kh2
{[%clk 0:00:09.4]} 36... Bxf2 {[%clk 0:00:04.3]} 37. Rc8+ {[%clk 0:00:09.1]}
37... Kh7 {[%clk 0:00:04.9]} 38. Nf8+ {[%clk 0:00:08.8]} 38... Kg8 {[%clk
0:00:05.6]} 39. b4 {[%clk 0:00:04.5]} 39... g5 {[%clk 0:00:04.4]} 40. Ne6+
{[%clk 0:00:03.7]} 40... Kh7 {[%clk 0:00:04.4]} 41. Nc5 {[%clk 0:00:02.8]} 41...
Rb1 {[%clk 0:00:03.8]} 42. Rc7 {[%clk 0:00:02.3]} 42... Kg6 {[%clk 0:00:03.8]}
43. Rc6+ {[%clk 0:00:01.4]} 43... Kg7 {[%clk 0:00:02.9]} 44. Nd3 {[%clk
0:00:02.3]} 44... Be3 {[%clk 0:00:02.7]} 45. Rc4 {[%clk 0:00:02.5]} 45... Rb3
{[%clk 0:00:02.6]} 46. Nc5 {[%clk 0:00:01.8]} 46... Bf4+ {[%clk 0:00:02.3]} 47.
g3 {[%clk 0:00:01.5]} 47... Rb2+ {[%clk 0:00:02.6]} 48. Kg1 {[%clk 0:00:01.7]}
48... Bxg3 {[%clk 0:00:03.3]} 49. Ne4 {[%clk 0:00:02.1]} 49... Bf4 {[%clk
0:00:03.5]} 50. Kf1 {[%clk 0:00:02.2]} 50... Kg6 {[%clk 0:00:03.9]} 51. Rc6+
{[%clk 0:00:02.2]} 51... Kf5 {[%clk 0:00:04.4]} 52. Nf2 {[%clk 0:00:02.4]} 52...
Bxe5 {[%clk 0:00:03.9]} 53. Rxh6 {[%clk 0:00:02.2]} 53... Rxb4 {[%clk
0:00:03.5]} 54. Rh7 {[%clk 0:00:02.5]} 54... f6 {[%clk 0:00:03.6]} 55. Re7
{[%clk 0:00:02.4]} 55... Rb1+ {[%clk 0:00:03.8]} 56. Kg2 {[%clk 0:00:02.7]}
56... Rb2 {[%clk 0:00:04.7]} 57. Kf3 {[%clk 0:00:02.5]} 57... Rb3+ {[%clk
0:00:04.8]} 58. Kg2 {[%clk 0:00:02.8]} 58... Bd4 {[%clk 0:00:05]} 59. Ng4 {[%clk
0:00:01.1]} 59... Rb2+ {[%clk 0:00:05.3]} 60. Kf3 {[%clk 0:00:01.5]} 60... Rb3+
{[%clk 0:00:05.8]} 61. Kg2 {[%clk 0:00:01.9]} 61... Ra3 {[%clk 0:00:05.7]} 62.
Kh2 {[%clk 0:00:01.5]} 62... Kg6 {[%clk 0:00:05]} 63. Kg2 {[%clk 0:00:01.8]}
63... f5 {[%clk 0:00:05.4]} 64. Nh2 {[%clk 0:00:01.4]} 64... Ra2+ {[%clk
0:00:04.8]} 65. Kh1 {[%clk 0:00:01.6]} 65... Kf6 {[%clk 0:00:05.7]} 66. Rb7
{[%clk 0:00:01.5]} 66... Be5 {[%clk 0:00:05.9]} 67. Rb6+ {[%clk 0:00:01.2]}
67... Kg7 {[%clk 0:00:04.8]} 68. Nf3 {[%clk 0:00:02.1]} 68... Bf4 {[%clk
0:00:05.7]} 69. Nd4 {[%clk 0:00:02.2]} 69... Ra1+ {[%clk 0:00:04.6]} 70. Kg2
{[%clk 0:00:02.3]} 70... Ra2+ {[%clk 0:00:05.2]} 71. Kf3 {[%clk 0:00:01.9]}
71... Ra3+ {[%clk 0:00:05.5]} 72. Kg2 {[%clk 0:00:01.6]} 72... Ra5 {[%clk
0:00:03.2]} 0-1

[Event "Early-Titled-Tuesday-Blitz-October-17-2023"]
[Site "Chess.com"]
[Date "2023.10.17"]
[Round "5"]
[White "Tonychess32"]
[Black "wadsy27"]
[Result "0-1"]
[WhiteElo "2498"]
[BlackElo "2653"]
[TimeControl "180+1"]
[EndTime "8:59:35 PDT"]
[Termination "wadsy27 won on time"]

1. e4 {[%clk 0:03:00.9]} 1... c5 {[%clk 0:02:58.6]} 2. Nf3 {[%clk 0:03:01]} 2...
e6 {[%clk 0:02:58.7]} 3. c3 {[%clk 0:03:00.9]} 3... Nf6 {[%clk 0:02:57]} 4. e5
{[%clk 0:03:01.3]} 4... Nd5 {[%clk 0:02:57.2]} 5. d4 {[%clk 0:03:01]} 5... cxd4
{[%clk 0:02:57.7]} 6. cxd4 {[%clk 0:03:01.9]} 6... d6 {[%clk 0:02:56.2]} 7. Bd3
{[%clk 0:03:01.8]} 7... dxe5 {[%clk 0:02:56.1]} 8. Nxe5 {[%clk 0:03:00.7]} 8...
Nc6 {[%clk 0:02:55.6]} 9. Nxc6 {[%clk 0:02:58]} 9... bxc6 {[%clk 0:02:54.9]} 10.
O-O {[%clk 0:02:58.9]} 10... Bd6 {[%clk 0:02:54.5]} 11. Nc3 {[%clk 0:02:59.1]}
11... O-O {[%clk 0:02:54.5]} 12. Ne4 {[%clk 0:02:56.9]} 12... Be7 {[%clk
0:02:52.8]} 13. Re1 {[%clk 0:02:56]} 13... a5 {[%clk 0:02:52.9]} 14. a3 {[%clk
0:02:51.8]} 14... Ba6 {[%clk 0:02:48.3]} 15. Bc2 {[%clk 0:02:51.9]} 15... Nf6
{[%clk 0:02:36.8]} 16. Be3 {[%clk 0:02:38.5]} 16... Rb8 {[%clk 0:02:25.3]} 17.
b3 {[%clk 0:02:35.9]} 17... Qc7 {[%clk 0:02:11.1]} 18. Nc5 {[%clk 0:02:30.3]}
18... Bxc5 {[%clk 0:02:02.8]} 19. dxc5 {[%clk 0:02:30.4]} 19... Rfd8 {[%clk
0:02:03.1]} 20. Qf3 {[%clk 0:02:27.1]} 20... Bd3 {[%clk 0:01:43.8]} 21. Bf4
{[%clk 0:02:24.6]} 21... Qxf4 {[%clk 0:01:38]} 22. Qxf4 {[%clk 0:02:24.3]} 22...
Bxc2 {[%clk 0:01:38.6]} 23. b4 {[%clk 0:02:12.8]} 23... axb4 {[%clk 0:01:36.6]}
24. axb4 {[%clk 0:02:13.7]} 24... Nd5 {[%clk 0:01:36.5]} 25. Qg3 {[%clk
0:01:54.8]} 25... Rxb4 {[%clk 0:01:22.7]} 26. Rec1 {[%clk 0:01:48.9]} 26... Bg6
{[%clk 0:01:20.4]} 27. h3 {[%clk 0:01:37.4]} 27... h5 {[%clk 0:01:20.2]} 28. Ra6
{[%clk 0:01:20.6]} 28... h4 {[%clk 0:01:19.9]} 29. Qg5 {[%clk 0:01:18.3]} 29...
Rc8 {[%clk 0:01:14.4]} 30. Rca1 {[%clk 0:01:13.7]} 30... Rbb8 {[%clk 0:01:04.3]}
31. Qxh4 {[%clk 0:01:07.6]} 31... Nb4 {[%clk 0:01:04.4]} 32. Rb6 {[%clk
0:01:05.4]} 32... Nd3 {[%clk 0:01:04.3]} 33. Rxb8 {[%clk 0:01:03.4]} 33... Rxb8
{[%clk 0:01:04.9]} 34. Qg3 {[%clk 0:00:51.4]} 34... Rc8 {[%clk 0:00:52.1]} 35.
Ra7 {[%clk 0:00:46.3]} 35... Nxc5 {[%clk 0:00:49.8]} 36. h4 {[%clk 0:00:46.6]}
36... Ne4 {[%clk 0:00:47.5]} 37. Qe3 {[%clk 0:00:45.1]} 37... Nf6 {[%clk
0:00:46]} 38. Qe5 {[%clk 0:00:41.7]} 38... Be4 {[%clk 0:00:38.1]} 39. f3 {[%clk
0:00:41.4]} 39... Bd5 {[%clk 0:00:38.2]} 40. h5 {[%clk 0:00:38.8]} 40... Nh7
{[%clk 0:00:20.1]} 41. Kh2 {[%clk 0:00:32.7]} 41... Nf8 {[%clk 0:00:19.3]} 42.
h6 {[%clk 0:00:29.7]} 42... gxh6 {[%clk 0:00:17.8]} 43. Qf4 {[%clk 0:00:29.5]}
43... e5 {[%clk 0:00:15.1]} 44. Qxh6 {[%clk 0:00:29]} 44... Re8 {[%clk
0:00:12.6]} 45. Qf6 {[%clk 0:00:23.5]} 45... Ng6 {[%clk 0:00:11.1]} 46. Kg1
{[%clk 0:00:17.4]} 46... Rc8 {[%clk 0:00:05.5]} 47. Rd7 {[%clk 0:00:16.9]} 47...
Re8 {[%clk 0:00:04.7]} 48. Rd8 {[%clk 0:00:13.9]} 48... Rxd8 {[%clk 0:00:03.9]}
49. Qxd8+ {[%clk 0:00:14.8]} 49... Kg7 {[%clk 0:00:04.4]} 50. Kf2 {[%clk
0:00:11.8]} 50... Kh7 {[%clk 0:00:02.2]} 51. Qc7 {[%clk 0:00:11.4]} 51... Kg7
{[%clk 0:00:02.3]} 52. g3 {[%clk 0:00:11.1]} 52... Kf6 {[%clk 0:00:02.6]} 53.
Qd7 {[%clk 0:00:08]} 53... Kg7 {[%clk 0:00:03]} 54. Qd6 {[%clk 0:00:07.1]} 54...
Kg8 {[%clk 0:00:02.7]} 55. Ke3 {[%clk 0:00:07.3]} 55... Kg7 {[%clk 0:00:03]} 56.
Qc7 {[%clk 0:00:07.1]} 56... Kg8 {[%clk 0:00:03.1]} 57. Qd8+ {[%clk 0:00:07]}
57... Kg7 {[%clk 0:00:03.4]} 58. Qg5 {[%clk 0:00:07.7]} 58... Kg8 {[%clk
0:00:03.1]} 59. f4 {[%clk 0:00:07.2]} 59... exf4+ {[%clk 0:00:03.4]} 60. gxf4
{[%clk 0:00:07.9]} 60... Kf8 {[%clk 0:00:03.7]} 61. f5 {[%clk 0:00:08]} 61...
Ne7 {[%clk 0:00:03.3]} 62. Qh6+ {[%clk 0:00:07.9]} 62... Ke8 {[%clk 0:00:03.3]}
63. Kf4 {[%clk 0:00:07.2]} 63... Kd7 {[%clk 0:00:03.5]} 64. Ke5 {[%clk
0:00:06.1]} 64... Nc8 {[%clk 0:00:03]} 65. Qf6 {[%clk 0:00:06]} 65... Kc7 {[%clk
0:00:03.2]} 66. Qg7 {[%clk 0:00:05.5]} 66... Kd7 {[%clk 0:00:03.3]} 67. Qg3
{[%clk 0:00:05.2]} 67... Kc7 {[%clk 0:00:03.5]} 68. Kf6+ {[%clk 0:00:05.2]}
68... Kd7 {[%clk 0:00:03.9]} 69. Qd3 {[%clk 0:00:04.9]} 69... Nd6 {[%clk
0:00:04.1]} 70. Qa6 {[%clk 0:00:04.4]} 70... Ne4+ {[%clk 0:00:04.2]} 71. Ke5
{[%clk 0:00:04.7]} 71... f6+ {[%clk 0:00:04.3]} 72. Kd4 {[%clk 0:00:04.3]} 72...
Kd6 {[%clk 0:00:04.5]} 73. Qa3+ {[%clk 0:00:04.1]} 73... c5+ {[%clk 0:00:04.5]}
74. Ke3 {[%clk 0:00:04.5]} 74... Ke5 {[%clk 0:00:04.7]} 75. Qa7 {[%clk
0:00:04.2]} 75... Kxf5 {[%clk 0:00:04.8]} 76. Qd7+ {[%clk 0:00:04.4]} 76... Ke5
{[%clk 0:00:05.1]} 77. Qe7+ {[%clk 0:00:04.3]} 77... Kf5 {[%clk 0:00:05.5]} 78.
Qh7+ {[%clk 0:00:03.1]} 78... Ke5 {[%clk 0:00:05.9]} 79. Qh5+ {[%clk 0:00:03]}
79... f5 {[%clk 0:00:06.4]} 80. Qe8+ {[%clk 0:00:02.7]} 80... Kd6 {[%clk
0:00:06.7]} 81. Kf4 {[%clk 0:00:02.3]} 81... c4 {[%clk 0:00:06.9]} 82. Qd8+
{[%clk 0:00:02.5]} 82... Kc5 {[%clk 0:00:07.2]} 83. Qc7+ {[%clk 0:00:02.2]}
83... Bc6 {[%clk 0:00:07]} 84. Ke3 {[%clk 0:00:01.9]} 84... c3 {[%clk
0:00:07.2]} 85. Qe5+ {[%clk 0:00:02.1]} 85... Bd5 {[%clk 0:00:07.2]} 86. Qd4+
{[%clk 0:00:02]} 86... Kd6 {[%clk 0:00:07]} 87. Kd3 {[%clk 0:00:02.3]} 87... f4
{[%clk 0:00:07.1]} 0-1